fUST/lending_fUST_20250101
["ID","MTS","AMOUNT","RATE_DAILY","PERIOD"]
[347295138,1735663845836,-1006.99,0.00019726,3]
[347295140,1735663845845,-500.0,0.00019726,3]
[347295142,1735663845855,-500.0,0.00019726,3]
[347295144,1735663845864,-585.37,0.00019726,2]
[347295146,1735663845873,-500.0,0.00019726,3]
[347295148,1735663845882,-498.51273859,0.00019726,3]
[347295150,1735663845892,-500.0,0.00019726,3]
[347295152,1735663845901,-500.0,0.00019726,3]
[347295154,1735663845911,-500.0,0.00019726,3]
[347295156,1735663845920,-539.61007778,0.00019726,3]
[347295158,1735663845929,-509.40889844,0.00019726,3]
[347295160,1735663845939,-634.17,0.00019726,3]
[347295162,1735663845948,-500.0,0.00019726,3]
[347295164,1735663845956,-500.0,0.00019726,3]
[347295166,1735663845965,-500.0,0.00019726,3]
[347295168,1735663845975,-500.0,0.00019726,3]
[347295170,1735663845984,-507.94560489,0.00019726,3]
[347295172,1735663845993,-500.0,0.00019726,3]
[347295174,1735663846002,-1097.53,0.00019726,3]
[347295176,1735663846012,-500.0,0.00019726,3]
[347295178,1735663846021,-527.45,0.00019726,3]
[347295180,1735663846030,-616.51982857,0.00019726,3]
[347295182,1735663846039,-500.0,0.00019726,3]
[347295184,1735663846048,-500.0,0.00019726,3]
[347295186,1735663846057,-654.82,0.00019726,3]
[347295188,1735663846066,-599.41,0.00019726,3]
[347295190,1735663846076,-498.79066018,0.00019726,3]
[347295193,1735663846085,-181.29679314,0.00019726,3]
[347295196,1735663846094,-500.0,0.00019726,3]
[347295199,1735663846103,-500.0,0.00019726,3]
[347295202,1735663846115,-500.0,0.00019726,3]
[347295205,1735663846124,-492.28703826,0.00019726,3]
[347295208,1735663846134,-500.0,0.00019726,3]
[347295211,1735663846143,-500.0,0.00019726,3]
[347295214,1735663846152,-3236.7,0.00019726,3]
[347295218,1735663846167,-695.35,0.00019726,3]
[347295222,1735663846185,-816.9,0.00019726,3]
[347295227,1735663846199,-500.0,0.00019726,3]
[347295229,1735663846212,-500.0,0.00019726,3]
[347295232,1735663846228,-500.0,0.00019726,3]
[347295237,1735663846243,-500.0,0.00019726,3]
[347295240,1735663846258,-500.0,0.00019726,3]
[347295245,1735663846274,-500.0,0.00019726,3]
[347295250,1735663846289,-500.0,0.00019726,3]
[347295253,1735663846303,-500.0,0.00019726,3]
[347295258,1735663846319,-609.66,0.00019726,3]
[347295261,1735663846332,-500.0,0.00019726,3]
[347295266,1735663846344,-500.0,0.00019726,3]
[347295269,1735663846358,-500.0,0.00019726,3]
[347295274,1735663846372,-500.0,0.00019726,3]
[347295276,1735663846388,-1260.17,0.00019726,3]
[347295279,1735663846403,-500.0,0.00019726,3]
[347295282,1735663846419,-500.0,0.00019726,3]
[347295284,1735663846430,-500.0,0.00019726,3]
[347295286,1735663846441,-500.0,0.00019726,3]
[347295289,1735663846456,-500.0,0.00019726,3]
[347295291,1735663846472,-1210.05,0.00019726,3]
[347295294,1735663846483,-500.0,0.00019726,3]
[347295296,1735663846498,-500.0,0.00019726,3]
[347295299,1735663846510,-473.22711507,0.00019726,3]
[347295301,1735663846522,-675.52,0.00019726,3]
[347295303,1735663846535,-500.0,0.00019726,3]
[347295305,1735663846547,-563.45,0.00019726,3]
[347295308,1735663846559,-10389.64,0.00019726,3]
[347295310,1735663846571,-500.0,0.00019726,3]
[347295312,1735663846584,-500.0,0.00019726,3]
[347295315,1735663846597,-969.21,0.00019726,3]
[347295317,1735663846609,-505.31059276,0.00019726,3]
[347295319,1735663846621,-502.31500196,0.00019726,3]
[347295322,1735663846633,-500.0,0.00019726,3]
[347295324,1735663846645,-500.0,0.00019726,3]
[347295326,1735663846657,-1384.65,0.00019726,3]
[347295328,1735663846670,-500.0,0.00019726,3]
[347295331,1735663846681,-500.0,0.00019726,3]
[347295333,1735663846694,-687.23,0.00019726,3]
[347295335,1735663846707,-500.0,0.00019726,3]
[347295338,1735663846719,-500.0,0.00019726,3]
[347295340,1735663846731,-500.0,0.00019726,3]
[347295342,1735663846743,-500.0,0.00019726,3]
[347295345,1735663846755,-500.0,0.00019726,3]
[347295347,1735663846767,-500.0,0.00019726,3]
[347295349,1735663846779,-500.0,0.00019726,3]
[347295351,1735663846791,-1549.17,0.00019726,3]
[347295354,1735663846803,-552.36,0.00019726,3]
[347295356,1735663846815,-500.0,0.00019726,3]
[347295358,1735663846827,-500.0,0.00019726,3]
[347295361,1735663846839,-500.0,0.00019726,3]
[347295363,1735663846851,-500.0,0.00019726,3]
[347295365,1735663846863,-500.0,0.00019726,3]
[347295368,1735663846876,-1302.43,0.00019726,3]
[347295370,1735663846889,-640.84134407,0.00019726,3]
[347295372,1735663846902,-953.55,0.00019726,3]
[347295375,1735663846915,-500.0,0.00019726,3]
[347295377,1735663846927,-697.56,0.00019726,3]
[347295379,1735663846940,-1694.33,0.00019726,3]
[347295382,1735663846952,-500.0,0.00019726,3]
[347295384,1735663846965,-542.51371461,0.00019726,3]
[347295386,1735663846979,-500.0,0.00019726,3]
[347295389,1735663846991,-500.0,0.00019726,3]
[347295391,1735663847003,-500.0,0.00019726,3]
[347295393,1735663847017,-500.0,0.00019726,3]
[347295396,1735663847029,-503.12171205,0.00019726,3]
[347295398,1735663847041,-500.0,0.00019726,3]
[347295400,1735663847054,-500.0,0.00019726,3]
[347295403,1735663847067,-500.0,0.00019726,3]
[347295405,1735663847079,-500.0,0.00019726,3]
[347295408,1735663847092,-500.0,0.00019726,3]
[347295410,1735663847104,-500.0,0.00019726,3]
[347295412,1735663847118,-500.0,0.00019726,3]
[347295414,1735663847127,-500.0,0.00019726,3]
[347295416,1735663847136,-500.0,0.00019726,3]
[347295418,1735663847145,-500.0,0.00019726,3]
[347295420,1735663847156,-500.0,0.00019726,3]
[347295422,1735663847165,-1608.18,0.00019726,3]
[347295424,1735663847175,-1170.63,0.00019726,3]
[347295443,1735663847335,-500.0,0.00019726,3]
[347295445,1735663847350,-680.77,0.00019726,3]
[347295447,1735663847359,-500.0,0.00019726,3]
[347295449,1735663847368,-500.0,0.00019726,3]
[347295451,1735663847378,-500.0,0.00019726,3]
[347295453,1735663847387,-979.15,0.00019726,3]
[347295455,1735663847396,-500.0,0.00019726,3]
[347295457,1735663847405,-500.0,0.00019726,3]
[347295458,1735663847414,-945.56,0.00019726,3]
[347295460,1735663847424,-500.0,0.00019726,3]
[347295462,1735663847433,-537.36,0.00019726,3]
[347295464,1735663847442,-500.0,0.00019726,3]
[347295465,1735663847452,-500.0,0.00019726,3]
[347295466,1735663847461,-508.0383041,0.00019726,3]
[347295467,1735663847471,-500.0,0.00019726,3]
[347295468,1735663847480,-500.0,0.00019726,3]
[347295469,1735663847490,-1148.32,0.00019726,3]
[347295470,1735663847500,-500.0,0.00019726,3]
[347295471,1735663847510,-500.0,0.00019726,3]
[347295472,1735663847519,-500.0,0.00019726,3]
[347295473,1735663847528,-500.0,0.00019726,3]
[347295474,1735663847537,-500.0,0.00019726,3]
[347295475,1735663847546,-500.0,0.00019726,3]
[347295476,1735663847555,-1143.12,0.00019726,3]
[347295477,1735663847565,-500.0,0.00019726,3]
[347295478,1735663847574,-712.04,0.00019726,3]
[347295479,1735663847583,-756.78,0.00019726,3]
[347295480,1735663847593,-1797.65,0.00019726,3]
[347295481,1735663847602,-1113.87,0.00019726,3]
[347295482,1735663847611,-1013.78,0.00019726,3]
[347295483,1735663847620,-6304.71,0.00019726,3]
[347295484,1735663847629,-500.0,0.00019726,3]
[347295485,1735663847639,-224.48763208,0.00019726,3]
[347295486,1735663847647,-1100.54,0.00019726,3]
[347295487,1735663847656,-2208.65,0.00019726,3]
[347295488,1735663847666,-500.0,0.00019726,3]
[347295489,1735663847675,-500.0,0.00019726,3]
[347295490,1735663847684,-515.61,0.00019726,3]
[347295491,1735663847693,-861.95,0.00019726,3]
[347295492,1735663847703,-1012.45,0.00019726,3]
[347295493,1735663847712,-2210.04,0.00019726,3]
[347295494,1735663847721,-500.0,0.00019726,3]
[347295495,1735663847730,-1030.73,0.00019726,3]
[347295496,1735663847739,-500.0,0.00019726,3]
[347295497,1735663847748,-1778.02,0.00019726,3]
[347295498,1735663847757,-507.69576642,0.00019726,3]
[347295499,1735663847767,-500.0,0.00019726,3]
[347295500,1735663847775,-480.93022324,0.00019726,3]
[347295501,1735663847785,-500.0,0.00019726,3]
[347295502,1735663847794,-558.14,0.00019726,3]
[347295503,1735663847803,-500.0,0.00019726,3]
[347295504,1735663847813,-500.0,0.00019726,3]
[347295505,1735663847822,-500.0,0.00019726,3]
[347295506,1735663847831,-1012.56,0.00019726,3]
[347295507,1735663847840,-1230.87,0.00019726,3]
[347295508,1735663847849,-500.0,0.00019726,2]
[347295509,1735663847859,-500.0,0.00019726,3]
[347295510,1735663847868,-654.95,0.00019726,3]
[347295511,1735663847877,-500.0,0.00019726,3]
[347295512,1735663847886,-503.08783653,0.00019726,3]
[347295513,1735663847896,-500.0,0.00019726,3]
[347295514,1735663847905,-500.0,0.00019726,3]
[347295515,1735663847914,-500.0,0.00019726,3]
[347295516,1735663847924,-1323.38,0.00019726,3]
[347295517,1735663847933,-500.0,0.00019726,3]
[347295518,1735663847942,-929.55,0.00019726,3]
[347295519,1735663847951,-500.0,0.00019726,3]
[347295520,1735663847960,-502.48432463,0.00019726,3]
[347295521,1735663847969,-500.0,0.00019726,3]
[347295522,1735663847978,-500.0,0.00019726,3]
[347295523,1735663847987,-9949.46,0.00019726,3]
[347295524,1735663847996,-500.0,0.00019726,3]
[347295525,1735663848006,-500.0,0.00019726,3]
[347295526,1735663848015,-500.0,0.00019726,3]
[347295527,1735663848024,-153.1686384,0.00019726,3]
[347295528,1735663848034,-500.0,0.00019726,3]
[347295529,1735663848043,-500.0,0.00019726,3]
[347295530,1735663848053,-3455.83,0.00019726,3]
[347295531,1735663848062,-500.0,0.00019726,3]
[347295532,1735663848072,-595.44,0.00019726,3]
[347295533,1735663848081,-500.0,0.00019726,3]
[347295534,1735663848091,-949.24,0.00019726,3]
[347295535,1735663848101,-2132.45,0.00019726,3]
[347295536,1735663848114,-500.0,0.00019726,3]
[347295537,1735663848123,-4559.26,0.00019726,3]
[347295538,1735663848132,-500.0,0.00019726,3]
[347295539,1735663848141,-500.0,0.00019726,3]
[347295540,1735663848151,-500.0,0.00019726,3]
[347295541,1735663848160,-500.0,0.00019726,3]
[347295542,1735663848170,-49804.1,0.00019726,3]
[347295543,1735663848179,-1020.26,0.00019726,3]
[347295544,1735663848188,-1727.87,0.00019726,3]
[347295545,1735663848198,-500.0,0.00019726,3]
[347295546,1735663848207,-500.0,0.00019726,3]
[347295547,1735663848218,-555.74,0.00019726,3]
[347295548,1735663848227,-500.0,0.00019726,3]
[347295549,1735663848236,-511.26,0.00019726,3]
[347295550,1735663848246,-500.0,0.00019726,3]
[347295551,1735663848255,-502.63721505,0.00019726,3]
[347295552,1735663848265,-1376.99,0.00019726,3]
[347295553,1735663848274,-503.37256293,0.00019726,3]
[347295554,1735663848284,-500.0,0.00019726,3]
[347295555,1735663848294,-762.63,0.00019726,3]
[347295556,1735663848303,-500.0,0.00019726,3]
[347295557,1735663848313,-500.0,0.00019726,3]
[347295558,1735663848323,-891.01,0.00019726,3]
[347295559,1735663848333,-1279.79,0.00019726,3]
[347295560,1735663848343,-500.0,0.00019726,3]
[347295561,1735663848352,-1664.48,0.00019726,3]
[347295562,1735663848362,-567.18,0.00019726,3]
[347295563,1735663848372,-500.0,0.00019726,3]
[347295564,1735663848382,-2416.87,0.00019726,3]
[347295565,1735663848392,-979.41,0.00019726,3]
[347295566,1735663848402,-500.0,0.00019726,3]
[347295567,1735663848411,-500.0,0.00019726,3]
[347295568,1735663848421,-1312.81,0.00019726,3]
[347295569,1735663848430,-500.0,0.00019726,3]
[347295570,1735663848439,-509.609973,0.00019726,3]
[347295571,1735663848449,-1821.37,0.00019726,3]
[347295572,1735663848458,-166.23710047,0.00019726,3]
[347295573,1735663848467,-983.4,0.00019726,3]
[347295574,1735663848477,-625.58583475,0.00019726,3]
[347295575,1735663848487,-500.0,0.00019726,3]
[347295576,1735663848497,-500.0,0.00019726,3]
[347295577,1735663848507,-513.80924582,0.00019726,3]
[347295578,1735663848517,-572.47,0.00019726,3]
[347295579,1735663848527,-697.436,0.0001978,2]
[347295580,1735663848536,-5473.35,0.000198,2]
[347295581,1735663848546,-10090.25,0.000198,2]
[347295582,1735663848556,-1974.36,0.000198,2]
[347295583,1735663848566,-420.0,0.0001985,2]
[347295584,1735663848576,-500.0,0.0002,3]
[347295585,1735663848586,-500.0,0.0002,3]
[347295586,1735663848595,-543.53,0.0002,3]
[347295587,1735663848606,-500.0,0.0002,3]
[347295588,1735663848616,-571.64537705,0.0002,3]
[347295589,1735663848625,-553.7,0.0002,3]
[347295590,1735663848635,-500.0,0.0002,3]
[347295591,1735663848644,-1001.83,0.0002,3]
[347295592,1735663848654,-500.0,0.0002,3]
[347295593,1735663848663,-500.0,0.0002,3]
[347295594,1735663848672,-500.0,0.0002,3]
[347295595,1735663848682,-500.0,0.0002,3]
[347295596,1735663848691,-878.57,0.0002,3]
[347295597,1735663848700,-500.0,0.0002,3]
[347295598,1735663848710,-500.0,0.0002,3]
[347295599,1735663848719,-500.0,0.0002,3]
[347295600,1735663848729,-500.0,0.0002,3]
[347295601,1735663848737,-500.0,0.0002,3]
[347295602,1735663848746,-500.0,0.0002,3]
[347295603,1735663848756,-500.0,0.0002,3]
[347295604,1735663848765,-613.12939223,0.0002,3]
[347295605,1735663848775,-500.0,0.0002,3]
[347295606,1735663848784,-678.07,0.0002,3]
[347295607,1735663848793,-188.0,0.0002,2]
[347295608,1735663848802,-6260.83,0.0002,3]
[347295609,1735663848812,-500.0,0.0002,3]
[347295610,1735663848821,-500.0,0.0002,3]
[347295611,1735663848831,-963.65,0.0002,3]
[347295612,1735663848840,-500.0,0.0002,3]
[347295613,1735663848849,-530.59,0.0002,3]
[347295614,1735663848859,-500.0,0.0002,3]
[347295615,1735663848868,-500.0,0.0002,3]
[347295616,1735663848878,-1006.99,0.0002,3]
[347295617,1735663848887,-500.0,0.0002,3]
[347295618,1735663848897,-500.0,0.0002,3]
[347295619,1735663848906,-585.37,0.0002,2]
[347295620,1735663848915,-500.0,0.0002,3]
[347295621,1735663848924,-500.0,0.0002,3]
[347295622,1735663848933,-500.0,0.0002,3]
[347295623,1735663848943,-500.0,0.0002,3]
[347295624,1735663848952,-634.17,0.0002,3]
[347295625,1735663848961,-500.0,0.0002,3]
[347295626,1735663848970,-500.0,0.0002,3]
[347295627,1735663848979,-500.0,0.0002,3]
[347295628,1735663848989,-637.7871382,0.0002,3]
[347295629,1735663848998,-500.0,0.0002,3]
[347295630,1735663849008,-1097.53,0.0002,3]
[347295631,1735663849017,-500.0,0.0002,3]
[347295632,1735663849026,-527.45,0.0002,3]
[347295633,1735663849036,-500.0,0.0002,3]
[347295634,1735663849045,-500.0,0.0002,3]
[347295635,1735663849054,-654.82,0.0002,3]
[347295636,1735663849064,-500.0,0.0002,3]
[347295637,1735663849073,-500.0,0.0002,3]
[347295638,1735663849083,-500.0,0.0002,3]
[347295639,1735663849093,-500.0,0.0002,3]
[347295640,1735663849102,-3236.7,0.0002,3]
[347295641,1735663849115,-695.35,0.0002,3]
[347295642,1735663849124,-500.0,0.0002,3]
[347295643,1735663849134,-3.99531367,0.0002,3]
[347295644,1735663849293,-812.90468633,0.0002,3]
[347295645,1735663849302,-425.18890014,0.0002,3]
[347295646,1735663849312,-503.47725766,0.0002,3]
[347295647,1735663849321,-500.0,0.0002,3]
[347295648,1735663849330,-500.0,0.0002,3]
[347295649,1735663849340,-500.0,0.0002,3]
[347295650,1735663849349,-500.0,0.0002,3]
[347295651,1735663849358,-507.66078062,0.0002,3]
[347295652,1735663849368,-609.66,0.0002,3]
[347295653,1735663849379,-500.0,0.0002,3]
[347295654,1735663849389,-500.0,0.0002,3]
[347295655,1735663849398,-278.66673372,0.0002,3]
[347295656,1735663849407,-500.0,0.0002,3]
[347295657,1735663849416,-1260.17,0.0002,3]
[347295658,1735663849426,-500.0,0.0002,3]
[347295659,1735663849435,-500.0,0.0002,3]
[347295660,1735663849445,-1210.05,0.0002,3]
[347295661,1735663849454,-500.0,0.0002,3]
[347295662,1735663849464,-500.0,0.0002,3]
[347295663,1735663849474,-675.52,0.0002,3]
[347295664,1735663849483,-500.0,0.0002,3]
[347295665,1735663849493,-563.45,0.0002,3]
[347295666,1735663849503,-10389.64,0.0002,3]
[347295667,1735663849513,-500.0,0.0002,3]
[347295668,1735663849522,-500.0,0.0002,3]
[347295669,1735663849532,-969.21,0.0002,3]
[347295670,1735663849542,-500.0,0.0002,3]
[347295671,1735663849552,-500.0,0.0002,3]
[347295672,1735663849561,-1384.65,0.0002,3]
[347295673,1735663849679,-500.0,0.0002,3]
[347295674,1735663849688,-500.0,0.0002,3]
[347295675,1735663849698,-687.23,0.0002,3]
[347295676,1735663849707,-500.0,0.0002,3]
[347295677,1735663849716,-500.0,0.0002,3]
[347295678,1735663849725,-500.0,0.0002,3]
[347295679,1735663849734,-500.0,0.0002,3]
[347295680,1735663849743,-585.87511532,0.0002,3]
[347295681,1735663849752,-500.0,0.0002,3]
[347295682,1735663849762,-1549.17,0.0002,3]
[347295683,1735663849771,-552.36,0.0002,3]
[347295684,1735663849781,-500.0,0.0002,3]
[347295685,1735663849790,-500.0,0.0002,3]
[347295686,1735663849799,-500.0,0.0002,3]
[347295687,1735663849808,-500.0,0.0002,3]
[347295688,1735663849817,-1302.43,0.0002,3]
[347295689,1735663849827,-953.55,0.0002,3]
[347295690,1735663849835,-500.0,0.0002,3]
[347295691,1735663849844,-697.56,0.0002,3]
[347295692,1735663849853,-1694.33,0.0002,3]
[347295693,1735663849862,-2500.0,0.0002,2]
[347295694,1735663849872,-500.0,0.0002,3]
[347295695,1735663849881,-500.0,0.0002,3]
[347295696,1735663849890,-168.18687102,0.0002,3]
[347295697,1735663849900,-500.0,0.0002,3]
[347295698,1735663849909,-508.25873549,0.0002,3]
[347295699,1735663849918,-500.0,0.0002,3]
[347295700,1735663849927,-500.0,0.0002,3]
[347295701,1735663849936,-500.0,0.0002,3]
[347295702,1735663849945,-500.0,0.0002,3]
[347295703,1735663849954,-500.0,0.0002,3]
[347295704,1735663849964,-500.0,0.0002,3]
[347295705,1735663849973,-500.0,0.0002,3]
[347295706,1735663849983,-500.0,0.0002,3]
[347295707,1735663849991,-500.0,0.0002,3]
[347295708,1735663850000,-477.74748275,0.0002,3]
[347295709,1735663850010,-1170.63,0.0002,3]
[347295710,1735663850019,-1608.18,0.0002,3]
[347295711,1735663850028,-500.0,0.0002,3]
[347295712,1735663850037,-500.0,0.0002,3]
[347295713,1735663850046,-680.77,0.0002,3]
[347295714,1735663850056,-500.0,0.0002,3]
[347295715,1735663850065,-500.0,0.0002,3]
[347295716,1735663850074,-979.15,0.0002,3]
[347295717,1735663850083,-500.0,0.0002,3]
[347295718,1735663850093,-500.0,0.0002,3]
[347295719,1735663850103,-945.56,0.0002,3]
[347295720,1735663850115,-500.0,0.0002,3]
[347295721,1735663850125,-537.36,0.0002,3]
[347295722,1735663850134,-500.0,0.0002,3]
[347295723,1735663850143,-500.0,0.0002,3]
[347295724,1735663850154,-1148.32,0.0002,3]
[347295725,1735663850164,-500.0,0.0002,3]
[347295726,1735663850173,-500.0,0.0002,3]
[347295727,1735663850183,-500.0,0.0002,3]
[347295728,1735663850192,-500.0,0.0002,3]
[347295729,1735663850200,-500.0,0.0002,3]
[347295730,1735663850210,-500.0,0.0002,3]
[347295731,1735663850219,-1143.12,0.0002,3]
[347295732,1735663850228,-712.04,0.0002,3]
[347295733,1735663850237,-500.0,0.0002,3]
[347295734,1735663850246,-756.78,0.0002,3]
[347295735,1735663850255,-1797.65,0.0002,3]
[347295736,1735663850266,-1113.87,0.0002,3]
[347295738,1735663850276,-1013.78,0.0002,3]
[347295740,1735663850285,-6304.71,0.0002,3]
[347295741,1735663850294,-500.0,0.0002,3]
[347295743,1735663850303,-1100.54,0.0002,3]
[347295745,1735663850313,-2208.65,0.0002,3]
[347295746,1735663850322,-500.0,0.0002,3]
[347295747,1735663850331,-500.0,0.0002,3]
[347295748,1735663850340,-515.61,0.0002,3]
[347295750,1735663850350,-861.95,0.0002,3]
[347295751,1735663850358,-1012.45,0.0002,3]
[347295753,1735663850367,-2210.04,0.0002,3]
[347295755,1735663850376,-500.0,0.0002,3]
[347295756,1735663850386,-1030.73,0.0002,3]
[347295757,1735663850394,-500.0,0.0002,3]
[347295758,1735663850404,-1778.02,0.0002,3]
[347295759,1735663850413,-500.0,0.0002,3]
[347295760,1735663850423,-500.0,0.0002,3]
[347295761,1735663850432,-558.14,0.0002,3]
[347295762,1735663850441,-500.0,0.0002,3]
[347295763,1735663850450,-500.0,0.0002,3]
[347295764,1735663850460,-500.0,0.0002,3]
[347295765,1735663850469,-1012.56,0.0002,3]
[347295766,1735663850478,-1230.87,0.0002,3]
[347295767,1735663850487,-500.0,0.0002,2]
[347295768,1735663850497,-500.0,0.0002,3]
[347295769,1735663850506,-654.95,0.0002,3]
[347295770,1735663850515,-500.0,0.0002,3]
[347295771,1735663850524,-500.0,0.0002,3]
[347295772,1735663850533,-500.0,0.0002,3]
[347295773,1735663850542,-1323.38,0.0002,3]
[347295774,1735663850551,-500.0,0.0002,3]
[347295775,1735663850559,-929.55,0.0002,3]
[347295776,1735663850568,-500.0,0.0002,3]
[347295777,1735663850577,-10382.05,0.0002,3]
[347295778,1735663850585,-500.0,0.0002,3]
[347295779,1735663850594,-500.0,0.0002,3]
[347295780,1735663850603,-500.0,0.0002,3]
[347295781,1735663850613,-510.12415604,0.0002,3]
[347295782,1735663850622,-407.4638469,0.0002,3]
[347295783,1735663850631,-500.0,0.0002,3]
[347295784,1735663850640,-901.84007332,0.0002,3]
[347295785,1735663850657,-2553.98992668,0.0002,3]
[347295786,1735663850666,-500.0,0.0002,3]
[347295787,1735663850676,-595.44,0.0002,3]
[347295788,1735663850685,-500.0,0.0002,3]
[347295789,1735663850694,-949.24,0.0002,3]
[347295790,1735663850703,-1147.13613343,0.0002,3]
[347295791,1735663850714,-985.31386657,0.0002,3]
[347295792,1735663850723,-500.0,0.0002,3]
[347295793,1735663850732,-2665.32372919,0.0002,3]
[347295794,1735663850744,-677.41019514,0.0002,3]
[347295802,1735663851010,-500.0,0.00019178,2]
[347295803,1735663851020,-500.0,0.00019178,2]
[347295805,1735663851029,-606.48072109,0.00019178,2]
[347295806,1735663851038,-500.0,0.00019178,2]
[347295807,1735663851047,-505.36686549,0.00019178,2]
[347295808,1735663851056,-500.0,0.00019178,2]
[347295809,1735663851065,-500.0,0.00019178,2]
[347295810,1735663851075,-505.70545399,0.00019452,3]
[347295811,1735663851084,-500.0,0.00019452,3]
[347295812,1735663851093,-3657.73,0.00019726,3]
[347295813,1735663851103,-506.63747474,0.00019726,3]
[347295814,1735663851114,-1216.52607567,0.0002,3]
[347295816,1735663851124,-596.71581186,0.0002,3]
[347295818,1735663851133,-504.62763379,0.0002,3]
[347295819,1735663851143,-508.57730653,0.0002,3]
[347295821,1735663851153,-359.9148835,0.0002,3]
[347295822,1735663851162,-49804.1,0.0002,3]
[347295824,1735663851172,-1020.26,0.0002,3]
[347295826,1735663851181,-1727.87,0.0002,3]
[347295827,1735663851193,-500.0,0.0002,3]
[347295829,1735663851204,-500.0,0.0002,3]
[347295830,1735663851214,-555.74,0.0002,3]
[347295831,1735663851223,-500.0,0.0002,3]
[347295832,1735663851233,-511.26,0.0002,3]
[347295834,1735663851243,-500.0,0.0002,3]
[347295836,1735663851253,-1376.99,0.0002,3]
[347295838,1735663851262,-500.0,0.0002,3]
[347295839,1735663851274,-762.63,0.0002,3]
[347295840,1735663851284,-500.0,0.0002,3]
[347295842,1735663851294,-500.0,0.0002,3]
[347295843,1735663851304,-891.01,0.0002,3]
[347295844,1735663851313,-1279.79,0.0002,3]
[347295845,1735663851322,-500.0,0.0002,3]
[347295846,1735663851331,-1664.48,0.0002,3]
[347295847,1735663851341,-567.18,0.0002,3]
[347295848,1735663851350,-500.0,0.0002,3]
[347295849,1735663851359,-2416.87,0.0002,3]
[347295850,1735663851368,-500.0,0.0002,3]
[347295851,1735663851378,-979.41,0.0002,3]
[347295852,1735663851387,-534.89940103,0.0002,3]
[347295853,1735663851397,-1312.81,0.0002,3]
[347295854,1735663851407,-500.0,0.0002,3]
[347295855,1735663851417,-1821.37,0.0002,3]
[347295856,1735663851427,-983.4,0.0002,3]
[347295857,1735663851437,-500.0,0.0002,3]
[347295858,1735663851447,-500.0,0.0002,3]
[347295859,1735663851456,-572.47,0.0002,3]
[347295860,1735663851465,-3657.73,0.0002,3]
[347295861,1735663851475,-170.64626058,0.00020021,2]
[347295862,1735663851484,-174.91335406,0.00020021,2]